[Event "Live Chess"]
[Site "Chess.com"]
[Date "2021.02.28"]
[Round "-"]
[White "Keenan, Alex"]
[Black "Vadalia, Jainill"]
[Result "1/2-1/2"]
[BlackElo "1421"]
[CurrentPosition "8/1p3k2/6p1/3b1p2/p2B1K1P/P5P1/1P3P2/8 b - -"]
[ECO "C64"]
[ECOUrl "https://www.chess.com/openings/Ruy-Lopez-Opening-Classical-Zukertort-Gambit-5...O-O-6.d4"]
[EndDate "2021.02.28"]
[EndTime "11:45:20"]
[Link "https://www.chess.com/live/game/8249021197"]
[StartTime "10:59:30"]
[Termination "Game drawn by agreement"]
[TimeControl "1500+10"]
[Timezone "UTC"]
[UTCDate "2021.02.28"]
[UTCTime "10:59:30"]
[WhiteElo "1830"]

1. e4 { [%clk 0:25:10] } 1... e5 { [%clk 0:25:10] } 2. Nf3 { [%clk 0:25:17.1] } 2... Nc6 { [%clk 0:25:18.7] } 3. Bb5 { [%clk 0:25:24.1] } 3... Bc5 { [%clk 0:25:25.6] } 4. O-O { [%clk 0:25:28.9] } 4... Nf6 { [%clk 0:25:33.3] } 5. c3 { [%clk 0:25:18.1] } 5... O-O { [%clk 0:24:34.7] } 6. d4 { [%clk 0:25:23.1] } 6... exd4 { [%clk 0:24:27.7] } 7. cxd4 { [%clk 0:25:29.4] } 7... Bb6 { [%clk 0:24:34.2] } 8. d5 { [%clk 0:20:53.6] } 8... Ne7 { [%clk 0:24:15] } 9. Nc3 { [%clk 0:19:37.8] } 9... d6 { [%clk 0:24:09.7] } 10. h3 { [%clk 0:19:09.8] } 10... Bd7 { [%clk 0:23:48.2] } 11. Bd3 { [%clk 0:18:02.3] } 11... h6 { [%clk 0:23:36.5] } 12. Re1 { [%clk 0:15:59.5] } 12... Ng6 { [%clk 0:23:19.1] } 13. e5 { [%clk 0:14:43.9] } 13... Nxe5 { [%clk 0:23:18.8] } 14. Nxe5 { [%clk 0:14:51] } 14... dxe5 { [%clk 0:23:27.1] } 15. Rxe5 { [%clk 0:14:59.1] } 15... Bd4 { [%clk 0:23:09.8] } 16. Bh7+ { [%clk 0:14:44.9] } 16... Kxh7 { [%clk 0:23:01] } 17. Qxd4 { [%clk 0:14:51.9] } 17... Re8 { [%clk 0:22:11.3] } 18. Bf4 { [%clk 0:14:21.8] } 18... c6 { [%clk 0:19:20.1] } 19. Rae1 { [%clk 0:13:30] } 19... Be6 { [%clk 0:17:31.3] } 20. Qd3+ { [%clk 0:13:09.4] } 20... Kh8 { [%clk 0:15:04.5] } 21. Qe3 { [%clk 0:11:58.6] } 21... Nxd5 { [%clk 0:12:15.8] } 22. Nxd5 { [%clk 0:12:00.2] } 22... cxd5 { [%clk 0:12:24.3] } 23. Bxh6 { [%clk 0:11:39.9] } 23... Qh4 { [%clk 0:08:50.5] } 24. Bg5 { [%clk 0:10:51.3] } 24... Qh7 { [%clk 0:08:33.9] } 25. Rxd5 { [%clk 0:08:27.1] } 25... Bxd5 { [%clk 0:07:34.1] } 26. Qxe8+ { [%clk 0:08:33.8] } 26... Rxe8 { [%clk 0:07:44] } 27. Rxe8+ { [%clk 0:08:40.6] } 27... Qg8 { [%clk 0:07:53.4] } 28. Rxg8+ { [%clk 0:08:48.6] } 28... Kxg8 { [%clk 0:08:03.3] } 29. a3 { [%clk 0:08:56.4] } 29... a6 { [%clk 0:08:11.5] } 30. g3 { [%clk 0:08:56.7] } 30... g6 { [%clk 0:08:10.6] } 31. h4 { [%clk 0:09:03.5] } 31... Kg7 { [%clk 0:08:18.1] } 32. Kf1 { [%clk 0:09:09.3] } 32... f6 { [%clk 0:08:25] } 33. Be3 { [%clk 0:09:15.6] } 33... f5 { [%clk 0:08:33.1] } 34. Ke2 { [%clk 0:09:19.2] } 34... Kf6 { [%clk 0:08:39.2] } 35. Bd4+ { [%clk 0:09:27] } 35... Ke6 { [%clk 0:08:46.1] } 36. Ke3 { [%clk 0:09:32.2] } 36... a5 { [%clk 0:08:24.7] } 37. Kf4 { [%clk 0:09:29.4] } 37... a4 { [%clk 0:08:17.6] } 38. Kg5 { [%clk 0:09:24.7] } 38... Kf7 { [%clk 0:08:05.8] } 39. Kf4 { [%clk 0:09:25] } 1/2-1/2

[Event "Live Chess"]
[Site "Chess.com"]
[Date "2021.02.28"]
[Round "-"]
[White "McShane, James"]
[Black "Wardlaw, Tom"]
[Result "0-1"]
[BlackElo "1493"]
[CurrentPosition "5q1k/pp2r1pp/3p4/4nN1Q/4P3/7P/5PPK/8 w - -"]
[ECO "B21"]
[ECOUrl "https://www.chess.com/openings/Sicilian-Defense-Smith-Morra-Accepted-Scheveningen-Formation-7.O-O"]
[EndDate "2021.02.28"]
[EndTime "12:01:28"]
[Link "https://www.chess.com/live/game/8249095033"]
[StartTime "11:05:04"]
[Termination "TomChess50 won by resignation"]
[TimeControl "1500+10"]
[Timezone "UTC"]
[UTCDate "2021.02.28"]
[UTCTime "11:05:04"]
[WhiteElo "1305"]

1. e4 { [%clk 0:25:10] } 1... c5 { [%clk 0:25:10] } 2. d4 { [%clk 0:25:09.4] } 2... cxd4 { [%clk 0:25:07.8] } 3. c3 { [%clk 0:25:16.8] } 3... dxc3 { [%clk 0:25:00.4] } 4. Nxc3 { [%clk 0:25:26.7] } 4... Nc6 { [%clk 0:25:02.1] } 5. Nf3 { [%clk 0:25:20.8] } 5... d6 { [%clk 0:25:03] } 6. Bc4 { [%clk 0:25:23.5] } 6... e6 { [%clk 0:24:51.1] } 7. O-O { [%clk 0:25:08.3] } 7... Be7 { [%clk 0:24:54.4] } 8. Bf4 { [%clk 0:24:39.7] } 8... Nf6 { [%clk 0:24:42.4] } 9. Qe2 { [%clk 0:24:35] } 9... e5 { [%clk 0:24:12.3] } 10. Bg5 { [%clk 0:24:15.1] } 10... O-O { [%clk 0:24:07.2] } 11. h3 { [%clk 0:23:58.9] } 11... Be6 { [%clk 0:23:37.5] } 12. Rfd1 { [%clk 0:23:47.2] } 12... Rc8 { [%clk 0:23:12] } 13. Bxe6 { [%clk 0:21:32.8] } 13... fxe6 { [%clk 0:23:07.9] } 14. Rac1 { [%clk 0:21:21.3] } 14... Nh5 { [%clk 0:22:29.9] } 15. Be3 { [%clk 0:20:53.6] } 15... Nf4 { [%clk 0:21:09.8] } 16. Bxf4 { [%clk 0:20:14.9] } 16... Rxf4 { [%clk 0:20:15.6] } 17. Qe3 { [%clk 0:18:55.2] } 17... Rf8 { [%clk 0:19:28.1] } 18. Ne2 { [%clk 0:17:02.6] } 18... Qd7 { [%clk 0:18:29.8] } 19. b4 { [%clk 0:13:22.2] } 19... Nxb4 { [%clk 0:16:13.4] } 20. Nxe5 { [%clk 0:12:54.7] } 20... Qa4 { [%clk 0:15:39.5] } 21. Nf3 { [%clk 0:11:50.1] } 21... Rxc1 { [%clk 0:15:35.9] } 22. Rxc1 { [%clk 0:11:46.4] } 22... Qxa2 { [%clk 0:15:05.6] } 23. Rc7 { [%clk 0:11:39.4] } 23... Qb1+ { [%clk 0:14:25.1] } 24. Kh2 { [%clk 0:11:13.1] } 24... Nc6 { [%clk 0:14:06.1] } 25. Nfd4 { [%clk 0:10:13] } 25... Bd8 { [%clk 0:12:40.1] } 26. Rd7 { [%clk 0:08:53.9] } 26... Ne5 { [%clk 0:12:05.8] } 27. Rxd8 { [%clk 0:03:14.4] } 27... Rxd8 { [%clk 0:12:06.5] } 28. Nxe6 { [%clk 0:03:21.5] } 28... Re8 { [%clk 0:11:38] } 29. N2d4 { [%clk 0:02:31.9] } 29... Qa2 { [%clk 0:09:43.8] } 30. Nc7 { [%clk 0:02:00.3] } 30... Re7 { [%clk 0:09:27.8] } 31. Qg5 { [%clk 0:01:45.7] } 31... Qf7 { [%clk 0:08:43.6] } 32. Nd5 { [%clk 0:00:47] } 32... Re8 { [%clk 0:08:14.5] } 33. Nf5 { [%clk 0:00:51.7] } 33... Qf8 { [%clk 0:05:55] } 34. Nde7+ { [%clk 0:00:37.1] } 34... Kh8 { [%clk 0:05:24.8] } 35. Qh5 { [%clk 0:00:36.9] } 35... Rxe7 { [%clk 0:05:01.2] } 0-1

[Event "Live Chess"]
[Site "Chess.com"]
[Date "2021.02.28"]
[Round "-"]
[White "Wilson, Andy"]
[Black "Lukhi, Neev"]
[Result "0-1"]
[BlackElo "1373"]
[CurrentPosition "2R5/5pkp/8/1p6/8/5P1P/2p3P1/r4K2 w - -"]
[ECO "C00"]
[ECOUrl "https://www.chess.com/openings/French-Defense-Knight-Variation-2...d5"]
[EndDate "2021.02.28"]
[EndTime "11:22:51"]
[Link "https://www.chess.com/live/game/8249075897"]
[StartTime "11:03:31"]
[Termination "StPatKid won by resignation"]
[TimeControl "1500+10"]
[Timezone "UTC"]
[UTCDate "2021.02.28"]
[UTCTime "11:03:31"]
[WhiteElo "1470"]

1. e4 { [%clk 0:25:10] } 1... e6 { [%clk 0:25:10] } 2. Nf3 { [%clk 0:25:17.8] } 2... d5 { [%clk 0:25:07.8] } 3. exd5 { [%clk 0:25:23] } 3... exd5 { [%clk 0:25:16.1] } 4. h3 { [%clk 0:25:29.4] } 4... Nc6 { [%clk 0:25:19.4] } 5. Bb5 { [%clk 0:25:36.3] } 5... Bd7 { [%clk 0:25:19.6] } 6. O-O { [%clk 0:25:44.3] } 6... a6 { [%clk 0:25:26.6] } 7. Ba4 { [%clk 0:25:41.9] } 7... Nf6 { [%clk 0:25:32] } 8. d4 { [%clk 0:25:48.5] } 8... Be7 { [%clk 0:25:28.7] } 9. Bb3 { [%clk 0:25:45.9] } 9... O-O { [%clk 0:25:34.8] } 10. c4 { [%clk 0:25:26.2] } 10... Bf5 { [%clk 0:25:25.3] } 11. a3 { [%clk 0:25:08.7] } 11... Be4 { [%clk 0:24:49] } 12. Nc3 { [%clk 0:25:15.7] } 12... Bxf3 { [%clk 0:24:41.5] } 13. Qxf3 { [%clk 0:25:18.6] } 13... Nxd4 { [%clk 0:24:47.7] } 14. Qd1 { [%clk 0:25:16.1] } 14... Nxb3 { [%clk 0:24:29.8] } 15. Qxb3 { [%clk 0:25:24.5] } 15... d4 { [%clk 0:24:28.9] } 16. Nd5 { [%clk 0:25:27] } 16... Nxd5 { [%clk 0:24:19.7] } 17. cxd5 { [%clk 0:25:26.3] } 17... b5 { [%clk 0:24:12.5] } 18. Rd1 { [%clk 0:25:29.7] } 18... Bf6 { [%clk 0:24:13] } 19. Qf3 { [%clk 0:25:04.7] } 19... Qd7 { [%clk 0:23:39.4] } 20. b4 { [%clk 0:25:10.3] } 20... Rfd8 { [%clk 0:23:15.2] } 21. Bb2 { [%clk 0:24:54.1] } 21... Qxd5 { [%clk 0:23:05.8] } 22. Rd3 { [%clk 0:24:44.4] } 22... Qxf3 { [%clk 0:20:27.5] } 23. Rxf3 { [%clk 0:24:52.4] } 23... a5 { [%clk 0:20:12.5] } 24. bxa5 { [%clk 0:24:47.3] } 24... Rxa5 { [%clk 0:20:18.1] } 25. Rd1 { [%clk 0:24:40.1] } 25... c5 { [%clk 0:20:16.9] } 26. Rf4 { [%clk 0:23:31.2] } 26... d3 { [%clk 0:18:46] } 27. Bxf6 { [%clk 0:23:37.3] } 27... gxf6 { [%clk 0:18:54.6] } 28. Rxf6 { [%clk 0:23:45.6] } 28... Rxa3 { [%clk 0:18:59] } 29. Kf1 { [%clk 0:23:35.3] } 29... c4 { [%clk 0:19:00.1] } 30. f3 { [%clk 0:23:19.5] } 30... c3 { [%clk 0:18:58.3] } 31. Rc6 { [%clk 0:23:13.9] } 31... c2 { [%clk 0:18:27.8] } 32. Rxc2 { [%clk 0:23:21.8] } 32... dxc2 { [%clk 0:18:26.3] } 33. Rxd8+ { [%clk 0:23:30] } 33... Kg7 { [%clk 0:18:34.8] } 34. Rc8 { [%clk 0:23:39.2] } 34... Ra1+ { [%clk 0:18:43.3] } 0-1

[Event "Live Chess"]
[Site "Chess.com"]
[Date "2021.02.28"]
[Round "-"]
[White "Benson, Alice"]
[Black "Perrie, Bill"]
[Result "0-1"]
[BlackElo "1217"]
[CurrentPosition "8/8/2R2pkp/1p1K2p1/1P4P1/2P5/4r1P1/8 w - -"]
[ECO "A41"]
[ECOUrl "https://www.chess.com/openings/Queens-Pawn-Opening-1...d6"]
[EndDate "2021.02.28"]
[EndTime "12:26:39"]
[Link "https://www.chess.com/live/game/8251448429"]
[StartTime "11:41:47"]
[Termination "squashboy won on time"]
[TimeControl "1510"]
[Timezone "UTC"]
[UTCDate "2021.02.28"]
[UTCTime "11:41:47"]
[WhiteElo "1246"]

1. d4 { [%clk 0:25:10] } 1... d6 { [%clk 0:25:10] } 2. Bf4 { [%clk 0:24:47.4] } 2... e6 { [%clk 0:25:03.3] } 3. e3 { [%clk 0:24:25.3] } 3... Nc6 { [%clk 0:24:59.3] } 4. Nf3 { [%clk 0:24:10.7] } 4... Be7 { [%clk 0:24:50.8] } 5. c3 { [%clk 0:22:59.6] } 5... Nf6 { [%clk 0:23:58.9] } 6. h3 { [%clk 0:22:15.5] } 6... d5 { [%clk 0:23:23.7] } 7. Bd3 { [%clk 0:21:18.4] } 7... Bd6 { [%clk 0:22:06] } 8. Bg5 { [%clk 0:19:12.7] } 8... h6 { [%clk 0:21:33.5] } 9. Bh4 { [%clk 0:18:21.5] } 9... Be7 { [%clk 0:21:21.7] } 10. Nbd2 { [%clk 0:17:09.9] } 10... Bd7 { [%clk 0:19:59.9] } 11. O-O { [%clk 0:15:31.6] } 11... O-O { [%clk 0:16:09.6] } 12. Bg3 { [%clk 0:13:52.8] } 12... Nh5 { [%clk 0:14:57] } 13. Ne5 { [%clk 0:12:05.6] } 13... Nxg3 { [%clk 0:14:37] } 14. Nxc6 { [%clk 0:11:49.1] } 14... Bxc6 { [%clk 0:14:30.6] } 15. fxg3 { [%clk 0:11:43] } 15... Qe8 { [%clk 0:13:38.9] } 16. Nf3 { [%clk 0:10:13.4] } 16... Bb5 { [%clk 0:12:27] } 17. a4 { [%clk 0:08:01.1] } 17... Bxd3 { [%clk 0:12:22.9] } 18. Qxd3 { [%clk 0:07:58.7] } 18... Bd6 { [%clk 0:11:27.1] } 19. Kh2 { [%clk 0:07:25.4] } 19... c5 { [%clk 0:10:35.2] } 20. e4 { [%clk 0:06:14.7] } 20... c4 { [%clk 0:10:26.1] } 21. Qc2 { [%clk 0:05:39.9] } 21... dxe4 { [%clk 0:10:10.1] } 22. Qxe4 { [%clk 0:05:13.7] } 22... Qb8 { [%clk 0:09:45.8] } 23. Ne5 { [%clk 0:03:45.6] } 23... Bxe5 { [%clk 0:09:09.2] } 24. dxe5 { [%clk 0:02:57.5] } 24... Qc7 { [%clk 0:08:59] } 25. Rf4 { [%clk 0:02:20.5] } 25... Rad8 { [%clk 0:08:24.6] } 26. Qe2 { [%clk 0:01:26.5] } 26... Rd5 { [%clk 0:07:58.5] } 27. Rxc4 { [%clk 0:00:57] } 27... Qxe5 { [%clk 0:07:37.3] } 28. Qxe5 { [%clk 0:00:47.5] } 28... Rxe5 { [%clk 0:07:33.5] } 29. Rc7 { [%clk 0:00:45.4] } 29... Rb8 { [%clk 0:07:24.8] } 30. Rf1 { [%clk 0:00:42.1] } 30... Rf5 { [%clk 0:07:17.1] } 31. Rxf5 { [%clk 0:00:35.4] } 31... exf5 { [%clk 0:07:14] } 32. Kg1 { [%clk 0:00:24.8] } 32... a6 { [%clk 0:07:10.2] } 33. Kf2 { [%clk 0:00:22.9] } 33... Kf8 { [%clk 0:06:59.6] } 34. Kf3 { [%clk 0:00:18.2] } 34... g6 { [%clk 0:06:56.5] } 35. b4 { [%clk 0:00:14.2] } 35... Kg7 { [%clk 0:06:47.7] } 36. Kf4 { [%clk 0:00:10.1] } 36... b5 { [%clk 0:06:41.8] } 37. axb5 { [%clk 0:00:07.9] } 37... axb5 { [%clk 0:06:39.1] } 38. Rc5 { [%clk 0:00:06.6] } 38... g5+ { [%clk 0:06:26.4] } 39. Kf3 { [%clk 0:00:04.9] } 39... Kg6 { [%clk 0:06:18.3] } 40. g4 { [%clk 0:00:03.3] } 40... fxg4+ { [%clk 0:06:13.5] } 41. hxg4 { [%clk 0:00:01.8] } 41... Rb6 { [%clk 0:06:08.5] } 42. Ke4 { [%clk 0:00:01.7] } 42... Re6+ { [%clk 0:06:03.8] } 43. Kd5 { [%clk 0:00:00.3] } 43... Re2 { [%clk 0:05:54.8] } 44. Rc6+ { [%clk 0:00:00.2] } 44... f6 { [%clk 0:05:50.9] } 0-1

[Event "Live Chess"]
[Site "Chess.com"]
[Date "2021.02.28"]
[Round "-"]
[White "Brown, Gerry"]
[Black "Flood, Raymond"]
[Result "1-0"]
[BlackElo "1565"]
[CurrentPosition "r2qr1k1/pp2pp2/7Q/3p1p2/3P4/2PR4/PP3P2/4R1K1 b - -"]
[ECO "B07"]
[ECOUrl "https://www.chess.com/openings/Pirc-Defense-Modern-Defense-Geller-System"]
[EndDate "2021.02.28"]
[EndTime "11:42:19"]
[Link "https://www.chess.com/live/game/8249023781"]
[StartTime "11:00:00"]
[Termination "Gerry44 won by resignation"]
[TimeControl "1500+10"]
[Timezone "UTC"]
[UTCDate "2021.02.28"]
[UTCTime "11:00:00"]
[WhiteElo "1508"]

1. e4 { [%clk 0:25:10] } 1... d6 { [%clk 0:25:10] } 2. Nf3 { [%clk 0:25:10.1] } 2... Nf6 { [%clk 0:25:04.7] } 3. Nc3 { [%clk 0:25:14.5] } 3... g6 { [%clk 0:25:05.3] } 4. Bc4 { [%clk 0:25:19.7] } 4... Bg7 { [%clk 0:24:31.4] } 5. O-O { [%clk 0:25:23.2] } 5... O-O { [%clk 0:24:38.1] } 6. Re1 { [%clk 0:25:19.7] } 6... c6 { [%clk 0:24:04.8] } 7. d4 { [%clk 0:25:19.9] } 7... Nxe4 { [%clk 0:22:28.3] } 8. Nxe4 { [%clk 0:24:54.1] } 8... d5 { [%clk 0:22:28.6] } 9. Bb3 { [%clk 0:24:32.4] } 9... dxe4 { [%clk 0:22:29.3] } 10. Rxe4 { [%clk 0:24:37.4] } 10... Bf5 { [%clk 0:22:07.1] } 11. Re1 { [%clk 0:24:42.1] } 11... Nd7 { [%clk 0:19:12.5] } 12. c3 { [%clk 0:24:35.8] } 12... Nf6 { [%clk 0:14:47.3] } 13. h3 { [%clk 0:22:15.1] } 13... Qc7 { [%clk 0:10:38.9] } 14. Ne5 { [%clk 0:21:32.3] } 14... Nd5 { [%clk 0:09:16.9] } 15. Bxd5 { [%clk 0:17:10.6] } 15... cxd5 { [%clk 0:09:18.9] } 16. Bf4 { [%clk 0:17:11.2] } 16... Qd8 { [%clk 0:07:34] } 17. Qd2 { [%clk 0:16:41.3] } 17... Re8 { [%clk 0:06:55.3] } 18. Rad1 { [%clk 0:16:29.3] } 18... h5 { [%clk 0:06:02.9] } 19. g4 { [%clk 0:14:25.6] } 19... hxg4 { [%clk 0:06:03.4] } 20. hxg4 { [%clk 0:14:32.2] } 20... Bxe5 { [%clk 0:05:54.9] } 21. gxf5 { [%clk 0:14:35.8] } 21... Bxf4 { [%clk 0:06:02.2] } 22. Qxf4 { [%clk 0:14:41.5] } 22... gxf5 { [%clk 0:06:05.8] } 23. Qg5+ { [%clk 0:13:52.4] } 23... Kf8 { [%clk 0:06:11.2] } 24. Qh6+ { [%clk 0:13:58.6] } 24... Kg8 { [%clk 0:06:16.4] } 25. Rd3 { [%clk 0:14:01.7] } 1-0

[Event "Live Chess"]
[Site "Chess.com"]
[Date "2021.02.28"]
[Round "-"]
[White "Seijas Otero, Ana Belen"]
[Black "Heatlie, Douglas S"]
[Result "1/2-1/2"]
[BlackElo "1617"]
[CurrentPosition "8/8/8/2k2p1p/p4P1P/P2K1P2/8/8 b - -"]
[ECO "D01"]
[ECOUrl "https://www.chess.com/openings/Richter-Veresov-Attack-3...Nbd7"]
[EndDate "2021.02.28"]
[EndTime "11:32:11"]
[Link "https://www.chess.com/live/game/8249630413"]
[StartTime "11:10:18"]
[Termination "Game drawn by agreement"]
[TimeControl "1500+10"]
[Timezone "UTC"]
[UTCDate "2021.02.28"]
[UTCTime "11:10:18"]
[WhiteElo "1366"]

1. d4 { [%clk 0:25:10] } 1... d5 { [%clk 0:25:10] } 2. Nc3 { [%clk 0:25:04.6] } 2... Nf6 { [%clk 0:25:16.5] } 3. Bg5 { [%clk 0:25:00.9] } 3... Nbd7 { [%clk 0:25:18.4] } 4. f3 { [%clk 0:24:57.6] } 4... e6 { [%clk 0:25:24.4] } 5. e4 { [%clk 0:25:05.2] } 5... Be7 { [%clk 0:25:25.7] } 6. exd5 { [%clk 0:25:08] } 6... exd5 { [%clk 0:25:32.5] } 7. Bd3 { [%clk 0:25:09.4] } 7... h6 { [%clk 0:25:39.4] } 8. Be3 { [%clk 0:25:08.3] } 8... O-O { [%clk 0:25:46.6] } 9. Nge2 { [%clk 0:25:16.5] } 9... b6 { [%clk 0:25:51.6] } 10. O-O { [%clk 0:25:21.7] } 10... Bb7 { [%clk 0:25:58.8] } 11. Bf2 { [%clk 0:25:21.2] } 11... c5 { [%clk 0:26:03.7] } 12. dxc5 { [%clk 0:25:23.9] } 12... bxc5 { [%clk 0:26:11.5] } 13. Ng3 { [%clk 0:25:29.2] } 13... c4 { [%clk 0:25:39] } 14. Be2 { [%clk 0:25:22.9] } 14... Bc5 { [%clk 0:25:42.9] } 15. Bxc5 { [%clk 0:25:20.4] } 15... Nxc5 { [%clk 0:25:50.5] } 16. Qd4 { [%clk 0:25:23.9] } 16... Ne6 { [%clk 0:25:51.5] } 17. Qd2 { [%clk 0:25:26.2] } 17... Qb6+ { [%clk 0:25:56.3] } 18. Kh1 { [%clk 0:25:21.8] } 18... Rfd8 { [%clk 0:25:45.9] } 19. b3 { [%clk 0:25:10.3] } 19... d4 { [%clk 0:25:32.2] } 20. Na4 { [%clk 0:25:17.6] } 20... Qc6 { [%clk 0:25:35.2] } 21. Bxc4 { [%clk 0:25:22.4] } 21... Rac8 { [%clk 0:25:15] } 22. Bd3 { [%clk 0:25:25.6] } 22... Qd6 { [%clk 0:25:05] } 23. Nb2 { [%clk 0:25:23.5] } 23... Nc5 { [%clk 0:24:52.6] } 24. Nc4 { [%clk 0:25:06.7] } 24... Qb8 { [%clk 0:24:38.8] } 25. Rfe1 { [%clk 0:24:42.4] } 25... Nxd3 { [%clk 0:24:40.7] } 26. Qxd3 { [%clk 0:24:47.1] } 26... Ba6 { [%clk 0:24:48.2] } 27. Rad1 { [%clk 0:24:19.3] } 27... Qb4 { [%clk 0:24:40] } 28. Nf5 { [%clk 0:24:19.1] } 28... Bxc4 { [%clk 0:24:44.4] } 29. bxc4 { [%clk 0:24:25.2] } 29... Rxc4 { [%clk 0:24:50.8] } 30. a3 { [%clk 0:24:24.2] } 30... Qc5 { [%clk 0:24:40.7] } 31. Ne3 { [%clk 0:23:36.8] } 31... Rc3 { [%clk 0:24:28.6] } 32. Qd2 { [%clk 0:23:24.3] } 32... Re8 { [%clk 0:24:34.2] } 33. Ng4 { [%clk 0:22:47] } 33... Rxe1+ { [%clk 0:24:38.9] } 34. Qxe1 { [%clk 0:22:45.6] } 34... Rxc2 { [%clk 0:24:37.6] } 35. Nxf6+ { [%clk 0:22:45.2] } 35... gxf6 { [%clk 0:24:40] } 36. Qe8+ { [%clk 0:22:50.9] } 36... Kg7 { [%clk 0:24:46.5] } 37. Qe4 { [%clk 0:22:07.6] } 37... Rc1 { [%clk 0:24:32.1] } 38. Qe1 { [%clk 0:21:55.8] } 38... Rxd1 { [%clk 0:24:38.5] } 39. Qxd1 { [%clk 0:22:04.1] } 39... Qc3 { [%clk 0:24:45.7] } 40. h3 { [%clk 0:22:09.2] } 40... d3 { [%clk 0:24:53.9] } 41. Kg1 { [%clk 0:21:57.7] } 41... d2 { [%clk 0:25:01.4] } 42. Kf2 { [%clk 0:22:04] } 42... Qc1 { [%clk 0:25:07.7] } 43. Ke2 { [%clk 0:21:45.7] } 43... f5 { [%clk 0:25:09.1] } 44. Qxd2 { [%clk 0:21:51.5] } 44... Qxd2+ { [%clk 0:25:17.1] } 45. Kxd2 { [%clk 0:21:58.1] } 45... Kf6 { [%clk 0:25:25.9] } 46. Kd3 { [%clk 0:22:06.1] } 46... Ke5 { [%clk 0:25:34] } 47. g3 { [%clk 0:22:14] } 47... Kd5 { [%clk 0:25:41.4] } 48. Kc3 { [%clk 0:22:10.9] } 48... a5 { [%clk 0:25:48.5] } 49. Kd3 { [%clk 0:22:15.1] } 49... f6 { [%clk 0:25:56.2] } 50. Kc3 { [%clk 0:22:17.6] } 50... h5 { [%clk 0:26:03.3] } 51. Kd3 { [%clk 0:22:16] } 51... Kc5 { [%clk 0:26:08] } 52. Kc3 { [%clk 0:22:14.1] } 52... a4 { [%clk 0:26:14.6] } 53. h4 { [%clk 0:20:50.2] } 53... f4 { [%clk 0:26:08.7] } 54. gxf4 { [%clk 0:20:54.2] } 54... f5 { [%clk 0:26:16.5] } 55. Kd3 { [%clk 0:20:49.7] } 55... Kd5 { [%clk 0:26:23.9] } 56. Kc3 { [%clk 0:20:56.7] } 56... Kc5 { [%clk 0:26:31.8] } 57. Kd3 { [%clk 0:20:58.5] } 1/2-1/2

[Event "Live Chess"]
[Site "Chess.com"]
[Date "2021.02.28"]
[Round "-"]
[White "Anderson, George C"]
[Black "Kelly, Conor"]
[Result "0-1"]
[BlackElo "1342"]
[CurrentPosition "r1b2rk1/1p4bp/p2p2p1/2pP1p2/2P1n3/1P2qN1P/PB2B1P1/1R1Q1R1K w - -"]
[ECO "A84"]
[ECOUrl "https://www.chess.com/openings/Dutch-Defense-Normal-Variation"]
[EndDate "2021.02.28"]
[EndTime "11:53:12"]
[Link "https://www.chess.com/live/game/8249027977"]
[StartTime "11:00:30"]
[Termination "kellycj42 won on time"]
[TimeControl "1500+10"]
[Timezone "UTC"]
[UTCDate "2021.02.28"]
[UTCTime "11:00:30"]
[WhiteElo "1057"]

1. d4 { [%clk 0:25:10] } 1... f5 { [%clk 0:25:10] } 2. c4 { [%clk 0:25:13.3] } 2... Nf6 { [%clk 0:25:17.6] } 3. Nf3 { [%clk 0:25:13.6] } 3... g6 { [%clk 0:25:05.2] } 4. e3 { [%clk 0:25:17.4] } 4... Bg7 { [%clk 0:25:08.8] } 5. Be2 { [%clk 0:25:01.5] } 5... O-O { [%clk 0:25:09.6] } 6. O-O { [%clk 0:24:51] } 6... d6 { [%clk 0:25:09.9] } 7. Nc3 { [%clk 0:24:40.5] } 7... c6 { [%clk 0:22:13.3] } 8. b3 { [%clk 0:23:14.8] } 8... Qe8 { [%clk 0:21:58.1] } 9. Bb2 { [%clk 0:22:55.1] } 9... e5 { [%clk 0:21:16.5] } 10. d5 { [%clk 0:18:30.9] } 10... e4 { [%clk 0:17:57.5] } 11. Ne1 { [%clk 0:11:42.4] } 11... c5 { [%clk 0:16:52.3] } 12. Nb5 { [%clk 0:10:45.8] } 12... Qe7 { [%clk 0:14:18.9] } 13. Rb1 { [%clk 0:10:04.8] } 13... a6 { [%clk 0:13:16.9] } 14. Na3 { [%clk 0:09:30.9] } 14... Nbd7 { [%clk 0:13:01.2] } 15. Nac2 { [%clk 0:09:08] } 15... Ne5 { [%clk 0:10:17.9] } 16. f4 { [%clk 0:05:46] } 16... exf3 { [%clk 0:06:32] } 17. Nxf3 { [%clk 0:04:57] } 17... Neg4 { [%clk 0:05:33.5] } 18. h3 { [%clk 0:04:41.3] } 18... Nxe3 { [%clk 0:05:28.8] } 19. Nxe3 { [%clk 0:04:32.4] } 19... Qxe3+ { [%clk 0:05:32.2] } 20. Kh1 { [%clk 0:04:24.6] } 20... Ne4 { [%clk 0:04:08] } 0-1